bitfinex/quotes_ETHUSD_20251019
["timestamp","ask_amount","ask_price","bid_price","bid_amount"]
[1760881229403,5.13320223,3950.7,3949.9,2.53169954]
[1760881229601,2.53128117,3950.6,3949.8,0.4359]
[1760881229805,2.53133802,3950.5,3949.7,2.53178524]
[1760881230300,2.53143171,3950.4,3949.6,0.002]
[1760881230504,2.53151174,3950.3,3949.6,0.002]
[1760881230681,2.602,3950.2,3949.6,0.002]
[1760881231509,5.13352206,3950.2,3949.6,0.002]
[1760881232105,0.1264,3949.8,3949.6,0.002]
[1760881236178,2.53183786,3949.7,3949.6,0.002]
[1760881236511,2.74253786,3949.7,3949.6,0.002]
[1760881236892,0.1117,3949.7,3949.6,0.002]
[1760881237790,2.64353786,3949.7,3949.6,0.002]
[1760881237990,0.1264,3949.8,3949.6,0.002]
[1760881239590,0.1264,3949.8,3949.7,0.4295]
[1760881240678,0.1264,3949.8,3949.6,0.002]
[1760881242580,0.1264,3949.8,3949.7,0.4295]
[1760881243513,0.1264,3949.8,3949.6,0.002]
[1760881246323,0.1264,3949.8,3949.7,0.4295]
[1760881246833,0.1264,3949.8,3949.6,0.002]
[1760881247592,2.65822733,3949.8,3949.6,0.002]
[1760881247788,4.25983786,3949.7,3949.6,0.002]
[1760881249325,4.35893786,3949.7,3949.6,0.002]
[1760881250303,4.25983786,3949.7,3949.6,0.002]
[1760881251210,1.728,3949.7,3949.6,0.002]
[1760881251827,4.25983786,3949.7,3949.6,0.002]
[1760881256339,1.728,3949.7,3949.6,0.002]
[1760881256844,4.25983786,3949.7,3949.6,0.002]
[1760881257332,4.35903786,3949.7,3949.6,0.002]
[1760881258110,4.25983786,3949.7,3949.6,0.002]
[1760881258326,1.728,3949.7,3949.6,0.002]
[1760881258509,1.728,3949.7,3949.6,0.4315]
[1760881259413,4.25983786,3949.7,3949.6,0.4315]
[1760881259938,1.728,3949.7,3949.6,0.4315]
[1760881263416,0.86020783,3950.6,3949.6,0.4315]
[1760881263716,1.8544,3949.9,3949.6,0.4315]
[1760881263919,1.8544,3949.9,3949.7,0.4295]
[1760881264759,4.38616911,3949.9,3949.6,0.002]
[1760881265056,2.53177376,3949.8,3949.6,0.002]
[1760881265568,1.728,3949.7,3949.6,0.002]
[1760881265863,6.85983786,3949.7,3949.6,0.002]
[1760881266150,2.53178283,3949.8,3949.6,0.4398]
[1760881266361,0.001,3950.4,3949.6,0.4398]
[1760881266567,0.001,3950.4,3950.3,0.2224]
[1760881267010,0.001,3950.4,3950.1,0.2224]
[1760881267449,0.001,3950.4,3950.2,0.4378]
[1760881267819,0.001,3950.4,3950.3,0.4378]
[1760881268916,0.001,3950.4,3950.3,2.9692533]
[1760881269610,0.001,3950.4,3950.3,0.4378]
[1760881269815,0.001,3950.4,3950.3,2.9692533]
[1760881270612,0.001,3950.4,3950.3,0.4378]
[1760881271528,0.001,3950.4,3950.3,2.9929533]
[1760881275761,0.001,3950.4,3950.3,3.1193533]
[1760881277153,0.001,3950.4,3950.3,5.7173533]
[1760881281738,0.001,3950.4,3950.3,5.5909533]
[1760881281936,0.001,3950.4,3950.3,5.7173533]
[1760881282157,0.001,3950.4,3950.3,5.2558533]
[1760881282370,0.001,3950.4,3950.3,5.7173533]
[1760881283251,0.001,3950.4,3950.3,5.5909533]
[1760881287061,0.001,3950.4,3950.3,5.5929533]
[1760881287263,0.001,3950.4,3950.3,5.1314533]
[1760881287577,0.001,3950.4,3950.3,5.1304533]
[1760881288775,0.001,3950.4,3950.3,2.5334533]
[1760881288982,0.001,3950.4,3950.3,5.1304533]
[1760881290788,0.001,3950.4,3950.3,5.5919533]
[1760881291390,0.001,3950.4,3950.3,5.1304533]
[1760881291861,0.001,3950.4,3950.3,5.5919533]
[1760881292770,0.001,3950.4,3950.3,5.1304533]
[1760881293310,0.001,3950.4,3950.3,5.2568533]
[1760881296489,0.001,3950.4,3950.3,2.6598533]
[1760881299305,2.53238922,3950.4,3950.3,0.1284]
[1760881299502,2.53238922,3950.4,3949.9,0.002]
[1760881299503,2.3616,3950.0,3949.9,0.002]
[1760881299682,2.596,3950.0,3949.9,0.002]
[1760881299999,2.6951,3950.0,3949.9,0.002]
[1760881300183,2.79658768,3950.0,3949.9,0.002]
[1760881301010,0.0991,3950.0,3949.9,0.002]
[1760881301176,0.001,3950.4,3949.9,0.002]
[1760881301378,0.0991,3950.3,3949.9,0.002]
[1760881302073,0.0991,3950.2,3949.9,0.002]
[1760881302778,0.001,3950.4,3949.9,0.002]
[1760881302998,0.0991,3950.3,3949.9,0.002]
[1760881304905,2.53239921,3950.4,3950.0,2.53163384]
[1760881304906,0.001,3950.4,3950.0,2.53163384]
[1760881305111,0.001,3950.4,3949.9,0.002]
[1760881306205,0.001,3950.8,3949.9,0.002]
[1760881306206,0.001,3950.8,3950.7,2.531197]
[1760881306373,0.001,3950.8,3950.7,7.305697]
[1760881306581,0.001,3950.8,3950.7,4.709697]
[1760881306809,0.001,3950.8,3950.7,8.06639719]
[1760881307213,0.001,3950.8,3950.7,5.343297]
[1760881307508,0.001,3950.8,3950.7,8.04071726]
[1760881309406,0.001,3950.8,3950.7,8.16711726]
[1760881311587,0.00112978,3951.2,3951.1,3.16454075]
[1760881311898,0.00112978,3951.2,3951.1,5.88594075]
[1760881312109,0.00112978,3951.2,3951.1,6.33644075]
[1760881316097,0.1115,3953.1,3952.8,2.52985225]
[1760881316406,0.2097,3953.5,3953.3,2.52953017]
[1760881316605,0.2097,3953.5,3952.5,2.52998789]
[1760881316606,0.2097,3953.5,3953.4,2.5294683]
[1760881317738,0.2097,3953.5,3953.2,2.595]
[1760881318034,2.52889469,3954.3,3953.4,2.52946479]
[1760881318233,0.1118,3953.3,3953.2,5.12454079]
[1760881318814,0.1118,3953.3,3953.2,2.595]
[1760881318815,0.2108,3953.3,3953.2,2.595]
[1760881319640,0.3242,3954.7,3952.5,0.4505]
[1760881319841,0.3242,3954.7,3952.6,2.594]
[1760881319842,4.182525,3953.8,3952.6,2.594]
[1760881320003,0.099,3953.7,3952.7,1.821]
[1760881320205,0.1153,3952.8,3951.6,2.5306205]
[1760881320536,0.1153,3952.8,3950.6,2.53125667]
[1760881320537,0.099,3952.7,3951.7,2.594]
[1760881320723,0.099,3952.6,3950.3,2.76322985]
[1760881320899,0.099,3952.6,3952.3,2.5301595]
[1760881321102,2.6931,3953.5,3952.4,0.4505]
[1760881321299,0.0991,3953.5,3953.2,2.52957042]
[1760881321527,0.0993,3953.4,3952.7,5.12390242]
[1760881321733,0.1149,3952.8,3952.7,2.594]
[1760881321905,2.64838219,3953.9,3953.3,2.52952362]
[1760881321906,0.2188,3953.9,3953.3,2.52952362]
[1760881322105,0.0996,3953.8,3952.7,0.4505]
[1760881322443,0.0996,3953.8,3952.8,2.594]
[1760881322741,0.1192,3953.9,3952.9,0.4505]
[1760881322900,0.1192,3953.9,3953.8,2.5292124]
[1760881323308,0.11,3954.3,3953.3,5.3553249]
[1760881323604,0.11,3954.3,3953.3,0.6823]
[1760881323830,0.11,3954.3,3954.2,2.52895655]
[1760881324755,0.11,3954.3,3954.1,2.52901634]
[1760881324908,0.209,3954.3,3954.1,2.52901634]
[1760881325108,0.209,3954.3,3954.2,2.52895655]
[1760881325330,0.11,3954.3,3954.2,2.52895655]
[1760881325922,0.1099,3954.5,3954.4,2.52882864]
[1760881326247,0.001,3954.7,3954.4,2.65522864]
[1760881326610,0.001,3954.7,3954.6,2.52870075]
[1760881326831,0.001,3954.7,3953.9,2.594]
[1760881327140,0.001,3954.7,3954.6,0.1264]
[1760881327141,0.1002,3954.7,3954.6,0.1264]
[1760881327909,0.1002,3954.7,3953.9,5.12314251]
[1760881328113,0.0992,3954.6,3954.3,0.1264]
[1760881328350,0.0992,3954.5,3953.4,2.594]
[1760881328649,0.0992,3954.4,3953.8,0.1264]
[1760881328860,0.1196,3953.9,3953.0,0.2168]
[1760881329153,0.219,3953.9,3953.5,0.1264]
[1760881329458,0.0994,3953.8,3953.5,0.1264]
[1760881329956,8.004073,3953.5,3952.2,0.1196]
[1760881330144,4.475988,3953.6,3952.2,2.53023632]
[1760881330444,0.0994,3953.6,3952.6,2.5299192]
[1760881330845,2.62880178,3953.6,3952.7,0.02529916]
[1760881331144,4.57907317,3953.4,3952.4,2.53010828]
[1760881331344,0.0994,3953.6,3949.9,2.67]
[1760881331345,0.0994,3953.3,3951.9,0.4589]
[1760881331547,2.52966245,3953.1,3951.9,2.98930449]
[1760881331746,0.0994,3953.0,3951.9,2.98930449]
[1760881331958,0.1146,3952.9,3952.0,2.53036437]
[1760881332181,0.1146,3952.9,3952.3,2.5301704]
[1760881332376,0.1146,3952.9,3952.1,2.53027801]
[1760881332537,0.1146,3952.9,3952.4,2.53007021]
[1760881332742,0.1146,3952.9,3952.5,2.53004319]
[1760881333173,2.62847468,3953.4,3952.5,2.53004319]
[1760881333374,0.115,3952.9,3952.5,2.53003967]
[1760881333668,0.213,3952.9,3952.2,2.53018044]
[1760881333874,0.213,3952.9,3952.3,2.53011114]
[1760881334058,0.213,3952.9,3952.4,2.53010497]
[1760881334468,3.35447265,3953.7,3952.4,2.53010497]
[1760881334469,0.85947265,3953.7,3952.4,2.53010497]
[1760881334667,2.024925,3953.5,3952.6,2.5299251]
[1760881334870,0.099,3953.5,3952.5,0.4589]
[1760881335080,4.700502,3953.4,3952.1,0.2147]
[1760881335258,0.099,3953.3,3952.1,0.2147]
[1760881335462,2.62864895,3953.2,3952.0,2.53035344]
[1760881335663,12.087244,3953.0,3952.0,2.53035344]
[1760881335860,0.2142,3952.9,3951.8,2.53048853]
[1760881336053,0.2142,3952.9,3952.1,2.53029377]
[1760881336256,0.2142,3952.9,3952.2,2.5302359]
[1760881336452,0.2142,3952.9,3952.3,2.53015036]
[1760881336453,0.115,3952.9,3952.3,2.53015036]
[1760881337048,0.115,3952.9,3952.2,2.53022825]
[1760881337749,0.115,3952.9,3952.1,0.2147]
[1760881338167,2.629527,3953.4,3952.2,0.4589]
[1760881338366,2.479271,3953.2,3952.2,0.4589]
[1760881338585,1.728,3953.4,3952.6,2.52995987]
[1760881338997,0.469,3953.7,3952.5,0.4589]
[1760881339169,1.728,3953.5,3952.9,2.52973595]
[1760881339369,1.728,3953.6,3952.9,2.52973595]
[1760881339754,0.0993,3953.5,3952.5,2.53003982]
[1760881339976,0.2257,3953.5,3952.9,0.1264]
[1760881340185,0.1264,3953.5,3952.9,0.1264]
[1760881340383,0.1264,3952.9,3952.2,0.1264]
[1760881340588,0.1147,3952.8,3952.2,0.1264]
[1760881340787,6.01,3953.3,3952.6,2.5299362]
[1760881340964,1.8544,3953.3,3952.6,2.6563362]
[1760881341664,1.8544,3953.3,3952.7,2.5299085]
[1760881341895,0.1264,3953.3,3952.8,2.52981857]
[1760881342081,0.1264,3953.3,3952.7,2.52990625]
[1760881342289,0.1264,3953.3,3952.6,2.65635695]
[1760881342485,0.1264,3953.3,3948.7,0.09999999]
[1760881342486,2.52971441,3953.1,3951.7,0.9279]
[1760881342696,1.728,3953.1,3951.8,0.4589]
[1760881342976,2.594,3953.4,3951.8,1.0925]
[1760881343187,1.728,3953.3,3952.7,2.52990323]
[1760881343402,1.728,3953.3,3952.5,0.2147]
[1760881343578,2.62864937,3953.2,3952.3,2.53012115]
[1760881344700,1.728,3953.3,3952.1,0.2147]
[1760881344899,2.594,3953.3,3952.7,2.52986777]
[1760881345104,1.728,3953.2,3952.7,2.52986777]
[1760881345925,1.728,3953.2,3952.3,2.53011487]
[1760881346369,1.728,3953.2,3952.6,2.52996098]
[1760881348315,1.728,3953.2,3952.3,0.4589]
[1760881348516,2.62870889,3953.1,3952.2,2.53023632]
[1760881348696,4.25760419,3953.2,3952.3,0.4589]
[1760881348875,0.099,3953.3,3952.3,0.4589]
[1760881349184,1.728,3953.3,3952.3,2.98906033]
[1760881349371,0.634,3953.2,3952.7,2.52991603]
[1760881349577,0.634,3953.2,3952.7,0.4589]
[1760881349777,0.568,3953.5,3952.7,0.4589]
[1760881350005,1.728,3953.3,3952.7,0.4589]
[1760881350205,1.728,3953.3,3952.8,2.52985225]
[1760881350589,2.594,3953.3,3952.8,2.98875225]
[1760881350985,2.5294212,3953.5,3952.8,0.4589]
[1760881351185,1.728,3953.3,3952.8,0.4589]
[1760881351385,2.594,3953.3,3952.8,0.4589]
[1760881352089,2.594,3953.3,3952.8,2.98875049]
[1760881352494,2.594,3953.3,3952.8,3.11515049]
[1760881354415,2.594,3953.3,3952.8,2.65625049]
[1760881354914,5.1235527,3953.3,3952.8,0.1264]
[1760881355120,2.594,3953.3,3952.8,0.1264]
[1760881355782,4.38382548,3953.5,3952.8,0.1264]
[1760881355981,4.421,3953.3,3952.8,0.1264]
[1760881356418,4.322,3953.3,3952.8,0.1264]
[1760881357411,0.001,3954.7,3953.2,0.2253]
[1760881357743,0.001,3954.7,3953.9,2.52912266]
[1760881357744,0.1002,3954.7,3953.9,2.52912266]
[1760881357902,0.001,3954.7,3953.4,2.593]
[1760881358104,2.197,3954.7,3954.3,2.528885]
[1760881358305,2.197,3954.7,3954.4,2.52881664]
[1760881359214,2.197,3954.7,3954.5,2.52875417]
[1760881359539,2.197,3954.7,3954.6,2.96980075]
[1760881359540,0.001,3954.7,3954.6,2.96980075]
[1760881359750,0.001,3954.7,3954.6,0.4411]
[1760881360411,0.001,3954.7,3954.6,2.96980075]
[1760881360804,0.001,3954.7,3954.6,2.52870075]
[1760881361005,0.001,3954.7,3954.6,2.96980075]
[1760881366233,0.001,3954.7,3954.2,0.2253]
[1760881366439,0.001,3954.7,3954.5,0.4411]
[1760881366605,0.001,3954.7,3954.6,2.52870075]
[1760881367039,0.001,3954.7,3954.6,2.96980075]
[1760881367410,0.001,3954.7,3954.6,3.09620075]
[1760881367707,0.001,3954.7,3954.6,5.68820075]
[1760881371050,0.1001,3954.7,3953.3,0.2253]
[1760881371221,0.001,3954.7,3954.3,2.52887951]
[1760881371427,0.001,3954.7,3954.6,2.52870075]
[1760881372345,0.001,3954.7,3954.6,2.96980075]
[1760881374653,0.001,3954.7,3954.6,2.52870075]
[1760881375950,0.001,3954.7,3954.6,2.96980075]
[1760881376746,0.001,3954.7,3954.6,2.52870075]
[1760881377567,0.001,3954.7,3954.5,2.595]
[1760881377755,0.0991,3954.6,3953.6,0.4411]
[1760881377957,0.0991,3954.6,3954.3,2.52883857]
[1760881378347,0.0991,3954.6,3954.3,2.52887896]
[1760881378876,0.001,3954.7,3954.4,2.52881609]
[1760881379441,0.001,3954.7,3954.6,2.52870075]
[1760881379674,0.001,3954.7,3954.3,2.52885658]
[1760881380481,0.001,3954.7,3954.2,2.75619359]
[1760881380645,0.001,3954.7,3954.6,2.52870075]
[1760881381184,0.001,3954.7,3954.6,3.09620075]
[1760881383383,0.001,3954.7,3954.6,2.96980075]
[1760881383759,0.001,3954.7,3954.6,2.99508775]
[1760881383955,0.001,3954.7,3954.6,2.96980075]
[1760881384504,0.001,3954.7,3954.6,5.12070075]
[1760881384661,0.001,3954.7,3954.6,2.592]
[1760881384856,0.001,3954.7,3954.6,5.12070075]
[1760881385053,0.001,3954.7,3954.6,5.57330075]
[1760881386675,0.001,3954.7,3954.6,5.12070075]
[1760881387074,0.001,3954.7,3954.4,2.52882505]
[1760881387312,0.001,3954.7,3954.2,0.002]
[1760881387313,0.001,3954.7,3954.5,0.4526]
[1760881387489,0.001,3954.7,3954.6,2.52870075]
[1760881388169,0.001,3954.7,3954.6,2.98130075]
[1760881388374,0.001,3954.7,3954.6,2.52870075]
[1760881388890,0.001,3954.7,3954.6,2.98130075]
[1760881389391,0.001,3954.7,3954.6,2.52870075]
[1760881390091,0.001,3954.7,3954.6,2.98130075]
[1760881390290,0.001,3954.7,3954.5,2.592]
[1760881391167,0.0991,3954.6,3954.2,0.002]
[1760881391401,0.0991,3954.5,3954.2,0.002]
[1760881392270,0.0991,3954.4,3954.2,0.002]
[1760881393100,2.52870557,3954.6,3954.2,0.002]
[1760881393293,0.0991,3954.3,3954.2,0.002]
[1760881394703,2.62799259,3954.3,3954.2,0.002]
[1760881395007,0.2255,3954.3,3954.2,0.002]
[1760881395372,2.75439259,3954.3,3954.2,0.002]
[1760881395573,0.2255,3954.3,3954.2,0.002]
[1760881396503,2.75439259,3954.3,3954.2,0.002]
[1760881397005,5.921311,3954.3,3954.2,0.002]
[1760881397206,0.1264,3954.3,3954.2,0.002]
[1760881397504,0.1264,3954.5,3954.2,0.002]
[1760881397910,0.0991,3954.4,3954.2,0.002]
[1760881398083,0.1264,3954.5,3954.2,0.002]
[1760881398273,0.001,3954.7,3954.2,0.002]
[1760881398274,0.001,3954.7,3954.3,2.52886075]
[1760881398480,0.001,3954.7,3954.2,0.002]
[1760881398680,0.0991,3954.6,3954.2,0.002]
[1760881399008,0.0991,3954.5,3954.2,0.002]
[1760881399177,0.001,3954.7,3954.2,0.002]
[1760881399380,0.1001,3954.7,3954.2,0.002]
[1760881399598,0.001,3954.7,3954.3,0.4612]
[1760881399806,0.001,3954.7,3954.4,0.1264]
[1760881400006,0.001,3954.7,3954.4,2.65517305]
[1760881401706,0.001,3954.7,3954.6,2.52870075]
[1760881402097,0.001,3954.7,3954.4,0.1264]
[1760881402305,0.001,3954.7,3954.4,2.65516564]
[1760881403093,0.001,3954.7,3954.4,2.65059715]
[1760881403293,0.001,3954.7,3954.5,2.52875353]
[1760881404317,0.001,3954.7,3954.4,2.65065525]
[1760881404826,0.001,3954.7,3954.4,0.12183151]
[1760881406737,2.52968324,3954.7,3954.2,0.002]
[1760881406936,0.2255,3954.6,3954.2,0.002]
[1760881407136,2.75422044,3954.6,3954.2,0.002]
[1760881407507,0.1264,3954.6,3954.2,0.002]
[1760881408024,0.0991,3954.5,3954.2,0.002]
[1760881408810,0.001,3954.7,3954.2,0.002]
[1760881409015,2.592,3954.6,3954.2,0.002]
[1760881409231,0.001,3954.7,3954.2,0.002]
[1760881409437,0.0991,3954.6,3954.2,0.002]
[1760881409944,2.593,3954.7,3954.2,0.002]
[1760881411340,2.593,3954.7,3954.2,0.4632]
[1760881411941,2.593,3954.7,3954.2,0.002]
[1760881412143,0.001,3954.7,3954.2,0.002]
[1760881412648,0.001,3954.7,3954.2,0.2254]
[1760881412812,0.001,3954.7,3954.2,2.75433371]
[1760881413010,0.1001,3954.7,3954.2,0.002]
[1760881413449,0.001,3954.7,3954.2,0.002]
[1760881413665,0.1001,3954.7,3954.2,0.002]
[1760881413870,0.0991,3954.6,3954.2,0.002]
[1760881414442,0.0991,3954.5,3954.2,0.002]
[1760881415159,2.62789752,3954.5,3954.2,0.002]
[1760881415679,2.62794305,3954.4,3954.2,0.002]
[1760881416169,0.0991,3954.4,3954.2,0.002]
[1760881416872,2.52877959,3954.5,3954.2,0.002]
[1760881417040,2.52871137,3954.6,3954.2,0.002]
[1760881417240,0.0991,3954.5,3954.2,0.002]
[1760881417577,2.62788407,3954.5,3954.2,0.002]
[1760881418470,0.0991,3954.5,3954.2,0.002]
[1760881418670,2.52889259,3954.3,3954.2,0.002]
[1760881418846,18.57114659,3954.3,3954.2,0.002]
[1760881419048,18.67024659,3954.3,3954.2,0.002]
[1760881419570,16.32304359,3954.3,3954.2,0.002]
[1760881419742,15.46166959,3954.3,3954.2,0.002]
[1760881420138,19.37733559,3954.3,3954.2,0.002]
[1760881420378,12.10285659,3954.3,3954.2,0.002]
[1760881421191,12.83628059,3954.3,3954.2,0.002]
[1760881422188,15.48786259,3954.3,3954.2,0.002]
[1760881422498,15.06786459,3954.3,3954.2,0.002]
[1760881422673,5.581378,3954.3,3954.2,0.002]
[1760881422999,10.70227059,3954.3,3954.2,0.002]
[1760881423196,4.4464,3954.3,3954.2,0.002]
[1760881423396,9.456146,3954.3,3954.2,0.002]
[1760881423601,10.56632359,3954.3,3954.2,0.002]
[1760881424295,12.28956159,3954.3,3954.2,0.002]
[1760881424868,11.46077659,3954.3,3954.2,0.002]
[1760881425271,9.77276059,3954.3,3954.2,0.002]
[1760881425883,2.797468,3954.3,3954.2,0.002]
[1760881426199,5.515868,3954.3,3954.2,0.002]
[1760881426612,5.093423,3954.3,3954.2,0.002]
[1760881426910,5.24729259,3954.3,3954.2,0.002]
[1760881427115,5.069133,3954.3,3954.2,0.002]
[1760881427805,7.59802559,3954.3,3954.2,0.002]
[1760881427977,7.69712559,3954.3,3954.2,0.002]
[1760881428179,5.00602559,3954.3,3954.2,0.002]
[1760881428384,2.7184,3954.3,3954.2,0.002]
[1760881428734,5.867091,3954.3,3954.2,0.002]
[1760881429215,3.275091,3954.3,3954.2,0.002]
[1760881429514,5.80398359,3954.3,3954.2,0.002]
[1760881430314,0.1264,3954.3,3954.2,0.002]
[1760881430488,11.076907,3954.3,3954.2,0.002]
[1760881430694,13.60579959,3954.3,3954.2,0.002]
[1760881430888,13.28847959,3954.3,3954.2,0.002]
[1760881431116,12.89147959,3954.3,3954.2,0.002]
[1760881432902,13.33247259,3954.3,3954.2,0.002]
[1760881433302,13.23337259,3954.3,3954.2,0.002]
[1760881433486,12.11568259,3954.3,3954.2,0.002]
[1760881433688,6.16497859,3954.3,3954.2,0.002]
[1760881433902,6.98106659,3954.3,3954.2,0.002]
[1760881434099,5.77310259,3954.3,3954.2,0.002]
[1760881434892,5.99394459,3954.3,3954.2,0.002]
[1760881435088,4.78628159,3954.3,3954.2,0.002]
[1760881435307,0.1264,3954.3,3954.2,0.002]
[1760881435829,4.98125059,3954.3,3954.2,0.002]
[1760881436127,2.7184,3954.3,3954.2,0.002]
[1760881437527,2.7184,3954.3,3954.2,0.4559]
[1760881438322,0.1264,3954.3,3954.2,0.4559]
[1760881438816,5.46825059,3954.3,3954.2,0.002]
[1760881439531,5.56735059,3954.3,3954.2,0.002]
[1760881439994,5.46825059,3954.3,3954.2,0.002]
[1760881440895,2.939358,3954.3,3954.2,0.002]
[1760881441223,0.001,3954.5,3954.2,0.6906]
[1760881441418,0.001,3954.5,3954.3,0.4539]
[1760881441815,0.001,3954.5,3954.4,0.4539]
[1760881442011,0.001,3954.5,3954.2,0.2367]
[1760881442012,0.001,3954.5,3954.3,0.4539]
[1760881442212,0.001,3954.5,3954.2,0.002]
[1760881443144,0.001,3954.5,3954.3,0.4539]
[1760881443343,0.001,3954.5,3954.2,0.002]
[1760881443998,2.62793565,3954.4,3954.2,0.002]
[1760881444341,0.0991,3954.4,3954.2,0.002]
[1760881444496,2.52889259,3954.3,3954.2,0.002]
[1760881444828,13.62630959,3954.3,3954.2,0.002]
[1760881445018,10.08520959,3954.3,3954.2,0.002]
[1760881445730,15.73715859,3954.3,3954.2,0.002]
[1760881445934,14.57800159,3954.3,3954.2,0.002]
[1760881446098,16.30600159,3954.3,3954.2,0.002]
[1760881446816,23.40983859,3954.3,3954.2,0.002]
[1760881447197,23.40983859,3954.3,3954.1,1e-08]
[1760881447425,34.89055655,3954.2,3954.1,1e-08]
[1760881447703,5.13942272,3954.2,3954.1,1e-08]
[1760881447922,34.98965655,3954.2,3954.1,1e-08]
[1760881448440,37.58065655,3954.2,3954.1,1e-08]
[1760881448934,37.62473211,3954.2,3954.1,1e-08]
[1760881449137,37.62473211,3954.2,3953.8,0.002]
[1760881449298,35.00994843,3953.9,3953.8,0.002]
[1760881449612,37.60094843,3953.9,3953.8,0.002]
[1760881449808,37.70024843,3953.9,3953.8,0.002]
[1760881449995,37.9491146,3953.9,3953.8,0.002]
[1760881450598,39.0881146,3953.9,3953.8,0.002]
[1760881450808,38.83924843,3953.9,3953.8,0.002]
[1760881451636,39.29864843,3953.9,3953.8,0.002]
[1760881452256,35.56864843,3953.9,3953.8,0.002]
[1760881452474,39.29864843,3953.9,3953.8,0.002]
[1760881453245,9.29864843,3953.9,3953.8,0.002]
[1760881453554,9.29864843,3953.9,3951.1,0.4388]
[1760881453555,4.25878361,3951.4,3951.1,0.4388]
[1760881453743,6.420822,3951.2,3951.1,0.002]
[1760881454084,3.94924,3951.2,3951.1,0.002]
[1760881454374,3.94924,3951.2,3951.1,0.4388]
[1760881455493,1.728,3951.2,3951.1,0.4388]
[1760881455677,1.728,3951.2,3951.1,0.002]
[1760881455891,8.234367,3951.2,3951.1,0.4388]
[1760881456062,1.728,3951.2,3951.1,0.4388]
[1760881457680,4.401422,3951.2,3951.1,0.4388]
[1760881458508,4.401422,3951.2,3951.1,0.002]
[1760881458729,3.955764,3951.2,3951.1,0.4388]
[1760881459211,0.12423683,3951.8,3951.1,0.4388]
[1760881459394,1.728,3951.4,3951.1,0.4388]
[1760881459704,4.32,3951.3,3951.2,0.4368]
[1760881459907,1.728,3951.2,3951.1,0.002]
[1760881460397,2.592,3951.3,3951.1,0.4388]
[1760881460603,9.776507,3951.2,3951.1,0.002]
[1760881460770,20.39645,3951.2,3951.1,0.002]
[1760881461093,6.003561,3951.2,3951.1,0.4388]
[1760881461299,3.986697,3951.2,3951.1,0.4388]
[1760881461494,3.986697,3951.2,3951.1,0.002]
[1760881461715,6.469695,3951.2,3951.1,0.4388]
[1760881462713,7.005009,3951.2,3951.1,0.4388]
[1760881463025,6.279512,3951.2,3951.1,0.4388]
[1760881463523,4.213504,3951.2,3951.1,0.4388]
[1760881463715,1.728,3951.2,3951.1,0.4388]
[1760881464018,4.500991,3951.2,3951.1,0.4388]
[1760881464216,4.500991,3951.2,3951.1,0.002]
[1760881464915,8.155382,3951.2,3951.1,0.002]
[1760881465911,11.35168769,3951.2,3951.1,0.002]
[1760881466114,15.69673869,3951.2,3951.1,0.002]
[1760881466409,14.50540669,3951.2,3951.1,0.002]
[1760881466810,4.32,3951.2,3951.1,0.656]
[1760881467584,1.728,3951.2,3951.1,0.656]
[1760881467779,2.592,3951.3,3951.1,0.656]
[1760881468115,4.32,3951.3,3951.2,0.4368]
[1760881471219,2.53056527,3951.7,3951.2,0.4368]
[1760881471220,1.728,3951.7,3951.2,0.4368]
[1760881471422,8.481157,3952.2,3951.2,0.4368]
[1760881471624,6.387802,3951.9,3951.3,0.4368]
[1760881471925,1.728,3951.7,3951.3,0.4368]
[1760881472220,4.25857764,3951.7,3951.4,0.4368]
[1760881472400,2.5306205,3951.6,3951.4,0.4368]
[1760881472601,4.25856871,3951.7,3951.1,0.656]
[1760881472784,4.25856871,3951.7,3951.2,0.4368]
[1760881472990,4.25856871,3951.7,3951.3,0.4368]
[1760881473203,4.25856871,3951.7,3951.1,0.2192]
[1760881473520,4.25856871,3951.7,3951.2,0.4368]
[1760881473821,2.53086234,3951.3,3951.1,0.002]
[1760881474020,5.12284118,3951.3,3951.1,0.002]
[1760881474191,2.592,3951.2,3951.1,0.002]
[1760881474818,2.592,3951.2,3951.1,0.4465]
[1760881474986,2.53084118,3951.3,3951.1,0.4465]
[1760881475191,2.592,3951.2,3951.1,0.4465]
[1760881475386,2.592,3951.2,3951.1,0.2315]
[1760881476235,2.53038368,3952.0,3951.1,0.676]
[1760881476417,0.1264,3951.2,3951.1,0.2315]
[1760881476722,2.592,3951.6,3951.2,2.53085449]
[1760881476923,0.1264,3951.5,3951.3,0.4445]
[1760881477543,0.12684247,3952.4,3951.1,0.2315]
[1760881477544,0.1264,3952.5,3952.4,2.53004465]
[1760881477742,0.001,3954.7,3952.4,0.4445]
[1760881477743,0.1264,3952.8,3952.4,0.4445]
[1760881478040,0.1264,3952.8,3952.6,2.52996908]
[1760881478241,0.1264,3952.8,3952.7,0.4445]
[1760881478537,0.1264,3952.8,3952.7,2.97441625]
[1760881479752,0.1264,3953.2,3952.7,0.4445]
[1760881479963,0.001,3953.8,3952.7,0.4445]
[1760881479964,3.479673,3953.7,3953.1,2.75916026]
[1760881480250,0.1264,3953.6,3953.2,0.4445]
[1760881480410,0.1264,3953.6,3953.5,2.52940432]